fUSD/lending_fUSD_20260511
["ID","MTS","AMOUNT","RATE_DAILY","PERIOD"]
[422024803,1778484227000,158.96,7.985e-05,2]
[422024807,1778484228000,158.96,0.0001036,2]
[422024806,1778484228000,158.96,9.767e-05,2]
[422024805,1778484228000,158.96,9.173e-05,2]
[422024804,1778484228000,158.96,8.579e-05,2]
[422024810,1778484397000,-150.73120735,0.00010954,2]
[422024836,1778484632000,-150.0,0.00013389,2]
[422024833,1778484632000,-150.0,0.0001334,2]
[422024831,1778484632000,-169.71,0.00013273,2]
[422024834,1778484632000,-1200.0,0.00013388,2]
[422024838,1778484632000,-150.0,0.00013389,2]
[422024832,1778484632000,-158.96,0.00013329,2]
[422024843,1778484632000,-300.0,0.00013697,2]
[422024851,1778484632000,-391.68,0.00013699,2]
[422024845,1778484632000,-150.0,0.00013698,2]
[422024847,1778484632000,-166.66,0.00013699,2]
[422024850,1778484632000,-14242.11,0.00013699,2]
[422024853,1778484632000,-2500.0,0.00013699,2]
[422024856,1778484632000,-17698.98,0.00013699,2]
[422024857,1778484632000,-243.82,0.00013699,2]
[422024835,1778484632000,-150.0,0.00013389,2]
[422024841,1778484632000,-150.0,0.00013461,2]
[422024837,1778484632000,-150.0,0.00013389,2]
[422024865,1778484632000,-166.66,0.0001397,2]
[422024829,1778484632000,-189.36130469,0.00013191,2]
[422024858,1778484632000,-23833.15,0.00013699,2]
[422024815,1778484632000,-8.22879265,0.00010954,2]
[422024817,1778484632000,-150.0,0.00011948,2]
[422024819,1778484632000,-150.0,0.00012067,2]
[422024816,1778484632000,-158.96,0.00011548,2]
[422024818,1778484632000,-250.0,0.0001205,2]
[422024823,1778484632000,-212.86852218,0.00013088,2]
[422024820,1778484632000,-158.96,0.00012142,2]
[422024822,1778484632000,-158.96,0.00012735,2]
[422024825,1778484632000,-150.0,0.00013131,2]
[422024824,1778484632000,-514.05,0.00013122,2]
[422024821,1778484632000,-198.0,0.00012185,2]
[422024828,1778484632000,-163.71,0.00013188,2]
[422024826,1778484632000,-414.76,0.00013156,2]
[422024827,1778484632000,-2000.0,0.00013163,2]
[422024839,1778484632000,-150.0,0.00013389,2]
[422024854,1778484632000,-4448.39,0.00013699,2]
[422024877,1778484632000,-151.0,0.00014249,2]
[422024860,1778484632000,-150.0,0.00013761,2]
[422024883,1778484632000,-152.0,0.00014249,2]
[422024881,1778484632000,-152.0,0.00014249,2]
[422024879,1778484632000,-152.0,0.00014249,2]
[422024882,1778484632000,-152.0,0.00014249,2]
[422024880,1778484632000,-152.0,0.00014249,2]
[422024884,1778484632000,-152.0,0.00014249,2]
[422024878,1778484632000,-152.0,0.00014249,2]
[422024885,1778484632000,-152.0,0.00014249,2]
[422024890,1778484632000,-174.8,0.00014452,2]
[422024893,1778484632000,-150.0,0.00014505,2]
[422024887,1778484632000,-152.0,0.00014249,2]
[422024892,1778484632000,-250.0,0.00014474,2]
[422024891,1778484632000,-174.8,0.00014452,2]
[422024855,1778484632000,-3869.36,0.00013699,2]
[422024886,1778484632000,-152.0,0.00014249,2]
[422024876,1778484632000,-166.66,0.00014242,2]
[422024889,1778484632000,-2157.14243826,0.0001434,2]
[422024888,1778484632000,-152.0,0.00014249,2]
[422024859,1778484632000,-18846.92,0.00013699,2]
[422024875,1778484632000,-186.4,0.00014177,2]
[422024862,1778484632000,-2080.17592889,0.00013792,2]
[422024861,1778484632000,-200.0,0.00013772,2]
[422024894,1778484632000,-163.71,0.00014507,2]
[422024863,1778484632000,-163.71,0.00013848,2]
[422024866,1778484632000,-250.0,0.00014,2]
[422024864,1778484632000,-2797.52572278,0.00013906,2]
[422024868,1778484632000,-10663.9571837,0.00014006,2]
[422024870,1778484632000,-186.4,0.00014177,2]
[422024867,1778484632000,-4883.1706695,0.00014006,2]
[422024872,1778484632000,-186.4,0.00014177,2]
[422024871,1778484632000,-186.4,0.00014177,2]
[422024869,1778484632000,-150.0,0.00014133,2]
[422024874,1778484632000,-186.4,0.00014177,2]
[422024873,1778484632000,-186.4,0.00014177,2]
[422024908,1778484633000,-650.83634,0.0001485,2]
[422024910,1778484633000,-650.83634,0.0001485,2]
[422024909,1778484633000,-650.83634,0.0001485,2]
[422024913,1778484633000,-300.0,0.00014856,2]
[422024912,1778484633000,-650.83633,0.0001485,2]
[422024915,1778484633000,-150.0,0.00014877,2]
[422024904,1778484633000,-3340.65930002,0.000148,2]
[422024918,1778484633000,-523.67188447,0.00014899,2]
[422024914,1778484633000,-150.0,0.00014877,2]
[422024906,1778484633000,-255.0,0.00014821,2]
[422024898,1778484633000,-166.66,0.00014785,2]
[422024907,1778484633000,-650.83633,0.0001485,2]
[422024899,1778484633000,-5000.0,0.000148,2]
[422024902,1778484633000,-2500.0,0.000148,2]
[422024905,1778484633000,-2000.0,0.00014809,2]
[422024903,1778484633000,-1938.13860032,0.000148,2]
[422024901,1778484633000,-5175.3872,0.000148,2]
[422024897,1778484633000,-1680.0,0.00014727,2]
[422024896,1778484633000,-212.86852218,0.000147,2]
[422024895,1778484633000,-166.66,0.00014513,2]
[422024916,1778484633000,-200.0,0.0001488,2]
[422024900,1778484633000,-1604.96059684,0.000148,2]
[422024917,1778484633000,-2236.95670848,0.00014888,2]
[422024911,1778484633000,-650.83634,0.0001485,2]
[422024920,1778484633000,-500.0,0.00014899,2]
[422024942,1778484633000,-385.37598275,0.000149,2]
[422024941,1778484633000,-719.62920142,0.000149,2]
[422024940,1778484633000,-4670.20000004,0.000149,2]
[422024937,1778484633000,-11035.61705961,0.000149,2]
[422024936,1778484633000,-27123.63017928,0.000149,2]
[422024919,1778484633000,-443.71327676,0.00014899,2]
[422024933,1778484633000,-154.55261817,0.000149,2]
[422024939,1778484633000,-1254.41808677,0.000149,2]
[422024935,1778484633000,-153918.61460613,0.000149,2]
[422024934,1778484633000,-218.88310753,0.000149,2]
[422024932,1778484633000,-184.44973217,0.000149,2]
[422024938,1778484633000,-29422.10006372,0.000149,2]
[422024928,1778484633000,-500.0,0.00014899,2]
[422024930,1778484633000,-500.0,0.00014899,2]
[422024929,1778484633000,-198.15244363,0.00014899,2]
[422024925,1778484633000,-500.0,0.00014899,2]
[422024927,1778484633000,-500.0,0.00014899,2]
[422024922,1778484633000,-156.36920599,0.00014899,2]
[422024924,1778484633000,-194.02089378,0.00014899,2]
[422024926,1778484633000,-500.0,0.00014899,2]
[422024921,1778484633000,-226.13262253,0.00014899,2]
[422024923,1778484633000,-500.0,0.00014899,2]
[422024931,1778484633000,-500.0,0.00014899,2]
[422024946,1778484638000,-26236.90956473,0.000149,2]
[422024947,1778484638000,-1343.47919859,0.000149,2]
[422024948,1778484638000,-2040.26512992,0.000149,2]
[422024945,1778484638000,-615.21547425,0.000149,2]
[422024955,1778484640000,-794.84235015,0.000149,2]
[422024954,1778484640000,-30093.99196174,0.000149,2]
[422024953,1778484640000,-13999.43528928,0.000149,2]
[422024964,1778484643000,-17142.06172422,0.000149,2]
[422024962,1778484643000,-2500.0,0.000148,2]
[422024963,1778484643000,-28365.52493213,0.000149,2]
[422024977,1778484646000,-3229.6685245,0.000149,2]
[422024986,1778485062000,156.15,7.046e-05,2]
[422024989,1778485062000,156.15,8.497e-05,2]
[422024988,1778485062000,156.15,8.013e-05,2]
[422024987,1778485062000,156.15,7.53e-05,2]
[422024992,1778485063000,156.15,9.948e-05,2]
[422024991,1778485063000,156.15,9.464e-05,2]
[422024990,1778485063000,156.15,8.98e-05,2]
[422024998,1778485632000,-156.15,0.00011398,2]
[422024999,1778485632000,-43.15650802,0.00011474,2]
[422024997,1778485632000,-150.0,0.00011219,2]
[422024996,1778485632000,-150.0,0.00011109,2]
[422024995,1778485632000,-156.15,0.00010915,2]
[422024994,1778485632000,-156.15,0.00010431,2]
[422025000,1778485805000,160.0,6.599e-05,2]
[422025002,1778485805000,160.0,8.41e-05,2]
[422025003,1778485805000,160.0,9.316e-05,2]
[422025001,1778485805000,160.0,7.505e-05,2]
[422025004,1778485806000,160.0,0.00010222,2]
[422025032,1778485832000,-300.0,0.00012948,2]
[422025033,1778485832000,-1200.0,0.00012948,2]
[422025035,1778485832000,-4135.36,0.00012949,2]
[422025034,1778485832000,-209.16,0.00012949,2]
[422025030,1778485832000,-5091.13224981,0.00012946,2]
[422025049,1778485832000,-150.0,0.00013378,2]
[422025036,1778485832000,-9999.99,0.00012949,2]
[422025045,1778485832000,-2000.0,0.00013058,2]
[422025041,1778485832000,-4642.52,0.00012956,2]
[422025043,1778485832000,-4999.99,0.00012956,2]
[422025044,1778485832000,-1090.87,0.00013006,2]
[422025046,1778485832000,-182.25,0.00013073,2]
[422025048,1778485832000,-2080.17592889,0.00013371,2]
[422025042,1778485832000,-299.99,0.00012956,2]
[422025038,1778485832000,-1341.57,0.00012955,2]
[422025040,1778485832000,-3010.44,0.00012956,2]
[422025031,1778485832000,-300.0,0.00012948,2]
[422025037,1778485832000,-850.4,0.00012949,2]
[422025027,1778485832000,-1626.83,0.00012946,2]
[422025051,1778485832000,-150.0,0.00013488,2]
[422025009,1778485832000,-160.0,0.00011127,2]
[422025012,1778485832000,-192.09561961,0.00011474,2]
[422025014,1778485832000,-160.0,0.00012033,2]
[422025015,1778485832000,-150.729223,0.00012303,2]
[422025016,1778485832000,-218.74,0.00012542,2]
[422025018,1778485832000,-200.0,0.00012737,2]
[422025017,1778485832000,-448.41821506,0.00012622,2]
[422025022,1778485832000,-999.99,0.00012946,2]
[422025020,1778485832000,-160.0,0.00012939,2]
[422025019,1778485832000,-1041.06,0.00012759,2]
[422025021,1778485832000,-165.07,0.00012946,2]
[422025023,1778485832000,-433.3,0.00012946,2]
[422025026,1778485832000,-9999.99,0.00012946,2]
[422025024,1778485832000,-9999.99,0.00012946,2]
[422025025,1778485832000,-499.99,0.00012946,2]
[422025029,1778485832000,-628.32775019,0.00012946,2]
[422025028,1778485832000,-150.99,0.00012946,2]
[422025047,1778485832000,-500.0,0.00013091,2]
[422025039,1778485832000,-150.0,0.00012956,2]
[422025053,1778485832000,-150.0,0.00013488,2]
[422025088,1778485832000,-635.0,0.0001363,2]
[422025090,1778485832000,-635.0,0.0001363,2]
[422025092,1778485832000,-1367.55,0.00013699,2]
[422025091,1778485832000,-844.0,0.0001363,2]
[422025094,1778485832000,-200.0,0.00013699,2]
[422025093,1778485832000,-166.66,0.00013699,2]
[422025096,1778485832000,-150.0,0.00013737,2]
[422025095,1778485832000,-150.0,0.00013737,2]
[422025100,1778485832000,-150.0,0.00013866,2]
[422025098,1778485832000,-500.0,0.00013816,2]
[422025102,1778485832000,-556.0,0.00013904,2]
[422025101,1778485832000,-7369.85,0.00013866,2]
[422025099,1778485832000,-166.66,0.00013836,2]
[422025104,1778485832000,-556.0,0.00013904,2]
[422025103,1778485832000,-556.0,0.00013904,2]
[422025106,1778485832000,-556.0,0.00013904,2]
[422025050,1778485832000,-155.12,0.0001338,2]
[422025086,1778485832000,-635.0,0.0001363,2]
[422025076,1778485832000,-5252.68,0.00013608,2]
[422025097,1778485832000,-150.0,0.00013737,2]
[422025085,1778485832000,-635.0,0.0001363,2]
[422025083,1778485832000,-635.0,0.0001363,2]
[422025054,1778485832000,-150.0,0.00013488,2]
[422025056,1778485832000,-150.0,0.00013488,2]
[422025059,1778485832000,-500.0,0.00013562,2]
[422025055,1778485832000,-150.0,0.00013488,2]
[422025067,1778485832000,-220.63403268,0.00013562,2]
[422025069,1778485832000,-165.07,0.00013593,2]
[422025061,1778485832000,-500.0,0.00013562,2]
[422025063,1778485832000,-500.0,0.00013562,2]
[422025052,1778485832000,-152.21590126,0.00013488,2]
[422025057,1778485832000,-500.0,0.00013562,2]
[422025065,1778485832000,-500.0,0.00013562,2]
[422025071,1778485832000,-344.31630292,0.00013598,2]
[422025074,1778485832000,-500.0,0.00013599,2]
[422025078,1778485832000,-635.0,0.0001363,2]
[422025080,1778485832000,-635.0,0.0001363,2]
[422025082,1778485832000,-635.0,0.0001363,2]
[422025105,1778485832000,-556.0,0.00013904,2]
[422025128,1778485833000,-152.0,0.00014227,2]
[422025130,1778485833000,-152.0,0.00014227,2]
[422025138,1778485833000,-166.66,0.00014247,2]
[422025135,1778485833000,-150.0,0.00014237,2]
[422025132,1778485833000,-150.0,0.00014237,2]
[422025133,1778485833000,-150.0,0.00014237,2]
[422025134,1778485833000,-150.0,0.00014237,2]
[422025131,1778485833000,-150.0,0.00014237,2]
[422025139,1778485833000,-166.66,0.00014384,2]
[422025137,1778485833000,-1680.0,0.00014243,2]
[422025136,1778485833000,-165.07,0.00014241,2]
[422025140,1778485833000,-791.36050502,0.00014466,2]
[422025142,1778485833000,-150.0,0.00014487,2]
[422025141,1778485833000,-2236.95670848,0.00014467,2]
[422025145,1778485833000,-255.0,0.00014488,2]
[422025127,1778485833000,-152.0,0.00014227,2]
[422025129,1778485833000,-152.0,0.00014227,2]
[422025126,1778485833000,-152.0,0.00014227,2]
[422025108,1778485833000,-556.0,0.00013904,2]
[422025124,1778485833000,-152.0,0.00014227,2]
[422025149,1778485833000,-2000.0,0.00014691,2]
[422025107,1778485833000,-556.0,0.00013904,2]
[422025112,1778485833000,-150.0,0.00013987,2]
[422025111,1778485833000,-166.66,0.00013973,2]
[422025113,1778485833000,-150.0,0.00013987,2]
[422025109,1778485833000,-687.0,0.00013904,2]
[422025114,1778485833000,-150.0,0.00013987,2]
[422025110,1778485833000,-2157.14243826,0.00013919,2]
[422025115,1778485833000,-250.0,0.00014,2]
[422025116,1778485833000,-172.14,0.00014094,2]
[422025118,1778485833000,-420.0,0.00014201,2]
[422025117,1778485833000,-166.66,0.0001411,2]
[422025119,1778485833000,-301.0,0.00014201,2]
[422025122,1778485833000,-152.0,0.00014227,2]
[422025120,1778485833000,-152.0,0.00014227,2]
[422025121,1778485833000,-152.0,0.00014227,2]
[422025123,1778485833000,-152.0,0.00014227,2]
[422025125,1778485833000,-152.0,0.00014227,2]
[422025146,1778485833000,-413.32,0.00014497,2]
[422025147,1778485833000,-1642.27504537,0.000146,2]
[422025143,1778485833000,-150.0,0.00014487,2]
[422025173,1778485833000,-500.0,0.00014799,2]
[422025175,1778485833000,-500.0,0.00014799,2]
[422025174,1778485833000,-507.26527955,0.00014799,2]
[422025169,1778485833000,-500.0,0.00014799,2]
[422025168,1778485833000,-500.0,0.00014799,2]
[422025176,1778485833000,-500.0,0.00014799,2]
[422025171,1778485833000,-500.0,0.00014799,2]
[422025177,1778485833000,-25857.51561407,0.000148,2]
[422025179,1778485833000,-901.23418243,0.000148,2]
[422025178,1778485833000,-20600.25399351,0.000148,2]
[422025181,1778485833000,-2566.60401429,0.000148,2]
[422025182,1778485833000,-889.89658391,0.000148,2]
[422025183,1778485833000,-895.41,0.000148,2]
[422025180,1778485833000,-1237.08734021,0.000148,2]
[422025185,1778485833000,-3818.60026185,0.000148,2]
[422025184,1778485833000,-725.41796475,0.000148,2]
[422025187,1778485833000,-363.22867442,0.000148,2]
[422025172,1778485833000,-500.0,0.00014799,2]
[422025186,1778485833000,-456.00465215,0.000148,2]
[422025170,1778485833000,-500.0,0.00014799,2]
[422025167,1778485833000,-443.62061228,0.00014799,2]
[422025144,1778485833000,-150.0,0.00014487,2]
[422025150,1778485833000,-204.5796,0.000147,2]
[422025152,1778485833000,-18584.3044,0.000147,2]
[422025151,1778485833000,-15606.0343,0.000147,2]
[422025153,1778485833000,-5000.0,0.000147,2]
[422025154,1778485833000,-6793.3795,0.000147,2]
[422025155,1778485833000,-1870.01610573,0.000147,2]
[422025162,1778485833000,-201.75301911,0.00014763,2]
[422025157,1778485833000,-785.35577274,0.000147,2]
[422025161,1778485833000,-336.66176163,0.0001476,2]
[422025158,1778485833000,-150.0,0.00014737,2]
[422025160,1778485833000,-150.0,0.00014737,2]
[422025156,1778485833000,-2570.44217812,0.000147,2]
[422025159,1778485833000,-150.0,0.00014737,2]
[422025163,1778485833000,-209.56175689,0.0001478,2]
[422025165,1778485833000,-366.57031913,0.00014799,2]
[422025164,1778485833000,-155.86383987,0.0001479,2]
[422025166,1778485833000,-184.29500813,0.00014799,2]
[422025148,1778485833000,-2401.1596,0.000146,2]
[422025191,1778485837000,-26236.90956473,0.000148,2]
[422025193,1778485837000,-1452.07541205,0.000148,2]
[422025192,1778485837000,-365643.06402697,0.000148,2]
[422025205,1778485839000,-8441.88632382,0.000148,2]
[422025204,1778485839000,-1208.41684316,0.000148,2]
[422025202,1778485839000,-1127.06611192,0.000148,2]
[422025203,1778485839000,-3545.9326848,0.000148,2]
[422025213,1778485840000,-6061.57519651,0.000148,2]
[422025211,1778485840000,-4735.55327946,0.000148,2]
[422025212,1778485840000,-504.38,0.000148,2]
[422025210,1778485840000,-1029.67326749,0.000148,2]
[422025208,1778485840000,-564.11572434,0.000148,2]
[422025209,1778485840000,-1738.02322196,0.000148,2]
[422025207,1778485840000,-3302.40057009,0.000148,2]
[422025206,1778485840000,-452.09166447,0.000148,2]
[422025227,1778485842000,-7382.89706148,0.000148,2]
[422025229,1778485842000,-549730.9106,0.000148,2]
[422025230,1778485842000,-213.0,0.00014867,5]
[422025231,1778485842000,-200.0,0.0001488,2]
[422025228,1778485842000,-91074.51066516,0.000148,2]
[422025242,1778485843000,-150.0,0.00014986,2]
[422025232,1778485843000,-1332.7014055,0.00014881,2]
[422025233,1778485843000,-151.0,0.00014897,2]
[422025235,1778485843000,-501.68150247,0.00014899,2]
[422025234,1778485843000,-500.0,0.00014899,2]
[422025236,1778485843000,-159.0,0.000149,5]
[422025238,1778485843000,-272.20180405,0.000149,2]
[422025246,1778485843000,-150.0,0.00014986,2]
[422025237,1778485843000,-205.0,0.000149,5]
[422025241,1778485843000,-163.33,0.00014986,2]
[422025239,1778485843000,-181.46786937,0.000149,2]
[422025251,1778485843000,-28479.06886707,0.00015,2]
[422025243,1778485843000,-150.00000001,0.00014986,2]
[422025245,1778485843000,-150.0,0.00014986,2]
[422025244,1778485843000,-175.29480257,0.00014986,2]
[422025247,1778485843000,-500.0,0.00014999,2]
[422025248,1778485843000,-440137.58225402,0.00015,2]
[422025249,1778485843000,-98272.19812937,0.00015,2]
[422025250,1778485843000,-502.96,0.00015,2]
[422025252,1778485843000,-16894.28735086,0.00015,2]
[422025253,1778485843000,-416.0,0.00015,2]
[422025254,1778485843000,-343.07272125,0.00015,2]
[422025255,1778485843000,-702.41006237,0.00015,2]
[422025240,1778485843000,-181.46786937,0.000149,2]
[422025261,1778485845000,-2935.83537629,0.00015,2]
[422025260,1778485845000,-743224.82454027,0.00015,2]
[422025263,1778485845000,-998.3,0.00015,2]
[422025259,1778485845000,-392.00860854,0.00015,2]
[422025262,1778485845000,-826.36250253,0.00015,2]
[422025267,1778485846000,-379.86433002,0.00015,2]
[422025266,1778485846000,-885.94882332,0.00015,2]
[422025264,1778485846000,-55071.419338,0.00015,2]
[422025265,1778485846000,-544.1480577,0.00015,2]
[422025284,1778485984000,345.92,0.00019178,120]
[422025283,1778485984000,488.96,0.00019178,120]
[422025282,1778485984000,598.19,0.0002,120]
[422025281,1778485984000,712.05,0.000271,120]
[422025287,1778486577000,153.32,6.995e-05,2]
[422025288,1778486592000,269.1,0.000271,120]
[422025290,1778486593000,180.05,0.00019178,120]
[422025289,1778486593000,222.67,0.0002,120]
[422025294,1778486712000,67.25274,0.00011127,2]
[422025301,1778486739000,-246.25274,0.00011999,2]
[422025300,1778486739000,-300.0,0.00011999,2]
[422025299,1778486739000,-9453.74726,0.00011127,2]
[422025303,1778486741000,-184.0,0.00011999,2]
[422025302,1778486741000,-953.74726,0.00011999,2]
[422025305,1778486741000,-10000.0,0.00012,2]
[422025304,1778486741000,-8862.25274,0.00012,2]
[422025306,1778486742000,-10000.0,0.00012,2]
[422025307,1778486744000,-10000.0,0.00012,2]
[422025309,1778486745000,-10000.0,0.00012,2]
[422025308,1778486745000,-10000.0,0.00012,2]
[422025310,1778486746000,-10000.0,0.00012,2]
[422025311,1778486747000,-10000.0,0.00012,2]
[422025312,1778486748000,-10000.0,0.00012,2]
[422025313,1778486749000,-10000.0,0.00012,2]
[422025314,1778486750000,-10000.0,0.00012,2]
[422025315,1778486751000,-10000.0,0.00012,2]
[422025316,1778486752000,-10000.0,0.00012,2]
[422025317,1778486753000,-10000.0,0.00012,2]
[422025318,1778486754000,-10000.0,0.00012,2]
[422025319,1778486755000,-10000.0,0.00012,2]
[422025320,1778486756000,-10000.0,0.00012,2]
[422025322,1778486757000,-10000.0,0.00012,2]
[422025321,1778486757000,-10000.0,0.00012,2]
[422025323,1778486758000,-10000.0,0.00012,2]
[422025324,1778486759000,-10000.0,0.00012,2]
[422025325,1778486760000,-10000.0,0.00012,2]
[422025326,1778486761000,-10000.0,0.00012,2]
[422025328,1778486762000,-9700.0,0.00012,2]
[422025327,1778486762000,-300.0,0.00011999,2]
[422025330,1778486763000,-9850.0,0.00012,2]
[422025329,1778486763000,-150.0,0.00011999,2]
[422025331,1778486764000,-10000.0,0.00012,2]
[422025332,1778486765000,-10000.0,0.00012,2]
[422025333,1778486766000,-10000.0,0.00012,2]
[422025339,1778486809000,-355.0,0.00011999,2]
[422025338,1778486809000,-500.0,0.00011999,2]
[422025336,1778486809000,-500.0,0.00011999,2]
[422025337,1778486809000,-500.0,0.00011999,2]
[422025335,1778486809000,-245.0,0.000104,2]
[422025340,1778486834000,-384.26723009,0.00011899,2]
[422025342,1778486834000,-500.0,0.00011999,2]
[422025341,1778486834000,-145.0,0.00011999,2]
[422025343,1778486834000,-58.50595333,0.00011999,2]
[422025344,1778486861000,960.0,0.00027397,120]
[422025355,1778487031000,-1200.0,0.00011998,2]
[422025357,1778487031000,-150.0,0.00011999,2]
[422025365,1778487031000,-1294.64297778,0.00012,2]
[422025358,1778487031000,-441.49404667,0.00011999,2]
[422025356,1778487031000,-250.0,0.00011999,2]
[422025363,1778487031000,-82645.82932359,0.00012,2]
[422025360,1778487031000,-500.0,0.00011999,2]
[422025361,1778487031000,-500.0,0.00011999,2]
[422025359,1778487031000,-409.87020328,0.00011999,2]
[422025362,1778487031000,-500.0,0.00011999,2]
[422025374,1778487031000,-739.83242181,0.00012,2]
[422025367,1778487031000,-612.48304022,0.00012,2]
[422025366,1778487031000,-27229.11363583,0.00012,2]
[422025369,1778487031000,-255.75980045,0.00012,2]
[422025370,1778487031000,-1206.96082785,0.00012,2]
[422025371,1778487031000,-2412.11522595,0.00012,2]
[422025373,1778487031000,-1950.17403298,0.00012,2]
[422025372,1778487031000,-550.00639416,0.00012,2]
[422025368,1778487031000,-301.48251273,0.00012,2]
[422025375,1778487031000,-458.70064751,0.00012,2]
[422025376,1778487031000,-749.91736374,0.00012,2]
[422025364,1778487031000,-3754.47700234,0.00012,2]
[422025386,1778487037000,-446.26987052,0.00012,2]
[422025387,1778487037000,-26236.90956473,0.00012,2]
[422025389,1778487037000,-4405.66696543,0.00012,2]
[422025388,1778487037000,-391.63824,0.00012,2]
[422025392,1778487037000,-1150.03513351,0.00012,2]
[422025391,1778487037000,-2597.8045932,0.00012,2]
[422025394,1778487037000,-503.47737862,0.00012,2]
[422025393,1778487037000,-552.93113016,0.00012,2]
[422025390,1778487037000,-2917.5460326,0.00012,2]
[422025398,1778487038000,-4424.50751299,0.00012,2]
[422025397,1778487038000,-571.18927001,0.00012,2]
[422025395,1778487038000,-3943.20235798,0.00012,2]
[422025396,1778487038000,-5299.10887558,0.00012,2]
[422025413,1778487039000,-644.38,0.00012,2]
[422025412,1778487039000,-591.07158026,0.00012,2]
[422025411,1778487039000,-518.60482133,0.00012,2]
[422025431,1778487040000,-507.70929376,0.00013199,2]
[422025432,1778487040000,-250.0,0.00013199,2]
[422025437,1778487040000,-3946.9,0.00013215,2]
[422025435,1778487040000,-4999.99,0.00013199,2]
[422025436,1778487040000,-1486.86,0.00013199,2]
[422025438,1778487040000,-4625.3,0.00013232,2]
[422025442,1778487040000,-150.0,0.00013389,2]
[422025440,1778487040000,-150.0,0.00013389,2]
[422025439,1778487040000,-353.46,0.0001325,2]
[422025441,1778487040000,-150.00000001,0.00013389,2]
[422025443,1778487040000,-152.74636837,0.00013389,2]
[422025433,1778487040000,-48639.72,0.00013199,2]
[422025444,1778487040000,-150.0,0.00013389,2]
[422025434,1778487040000,-7991.05,0.00013199,2]
[422025425,1778487040000,-384.26723007,0.00012979,2]
[422025428,1778487040000,-250.0,0.00013198,2]
[422025430,1778487040000,-2582.31227938,0.00013199,2]
[422025414,1778487040000,-66264.0771003,0.00012,2]
[422025416,1778487040000,-2510.73356464,0.00012,2]
[422025415,1778487040000,-42293.39808523,0.00012,2]
[422025417,1778487040000,-20668.17903819,0.00012,2]
[422025420,1778487040000,-2936.32320695,0.00012339,2]
[422025419,1778487040000,-2140.5643412,0.00012239,2]
[422025426,1778487040000,-9999.99,0.00012979,2]
[422025421,1778487040000,-384.26723007,0.00012439,2]
[422025422,1778487040000,-15915.0,0.0001288,2]
[422025423,1778487040000,-150.99,0.0001288,2]
[422025424,1778487040000,-9999.99,0.0001288,2]
[422025446,1778487040000,-150.0,0.00013389,2]
[422025427,1778487040000,-2000.0,0.00013168,2]
[422025429,1778487040000,-1680.0,0.00013198,2]
[422025418,1778487040000,-240.0,0.00012119,2]
[422025445,1778487040000,-150.0,0.00013389,2]
[422025450,1778487040000,-150.0,0.00013538,2]
[422025451,1778487040000,-150.0,0.00013602,2]
[422025466,1778487040000,-150.0,0.00014027,2]
[422025463,1778487040000,-166.66,0.0001394,2]
[422025472,1778487040000,-150.0,0.00014239,2]
[422025471,1778487040000,-150.0,0.00014207,2]
[422025475,1778487040000,-152.0,0.00014241,2]